Cogmind - Beta 12 @@@ ROGUE MODE // 2023.04.21 @ 22:18:48 Player: wchar_t Result: Destroyed by H-61 Shepherd with Heavy Assault Cannon Performance ------------- Evolutions (2) 1000 Regions Visited (7) 1400 Robots Destroyed (9) 45 Value Destroyed (81) 81 Prototype IDs (24) 480 Alien Tech Used (0) 0 Bonus (0) 0 TOTAL SCORE: 3006 Bonus ------- None Cogmind --------- Core Integrity 0/550 Matter 294/300 Energy 100/100 System Corruption 12% Temperature Cool (0) Movement Core (50) Location -8/Materials Parts ------- > --- POWER (1) -------- (None) > --- PROPULSION (4) --- (None) > --- UTILITY (4) ------ (None) > --- WEAPON (2) ------- (None) > --- INVENTORY (5) ---- Light Nuclear Core Makeshift Sensor Array Experimental Sensor Array Skeleton Box Axe Peak State ------------ > --- POWER ------------ Light Nuclear Core > --- PROPULSION ------- Flight Unit Flight Unit VTOL Module > --- UTILITY ---------- Experimental Sensor Array Signal Interpreter Utility Shielding > --- WEAPON ----------- Axe > --- INVENTORY -------- Flight Unit Makeshift Sensor Array Skeleton Box Grenade Launcher Grenade Launcher [Rating: 22] Favorites ----------- Power Light Nuclear Core Power Core Light Nuclear Core Propulsion Flight Unit Flight Unit Flight Unit Utility Signal Interpreter Device Experimental Sensor Array Processor Signal Interpreter Protection Utility Shielding Weapon Grenade Launcher Launcher Grenade Launcher Slashing Weapon Axe Build | -11 -10 -10 -9 -9 -9 -8 -8 ------- Run | Jun Mat Min Mat Min Exi Min Mat Slots Evolved 4 | . . . 2 . . . 2 Power . | . . . . . . . . Propulsion 2 | . . . 1 . . . 1 Utility 2 | . . . 1 . . . 1 Weapon . | . . . . . . . . Parts Attached 16 | . . 4 2 . 1 2 7 Power 1 | . . . . . . . 1 Engine . | . . . . . . . . Core 1 | . . . . . . . 1 Reactor . | . . . . . . . . Propulsion 6 | . . 1 1 . . 1 3 Treads . | . . . . . . . . Leg . | . . . . . . . . Wheel . | . . . . . . . . Hover . | . . . . . . . . Flight 6 | . . 1 1 . . 1 3 Utility 5 | . . 2 1 . 1 1 . Device 2 | . . . 1 . 1 . . Storage . | . . . . . . . . Processor 1 | . . 1 . . . . . Hackware . | . . . . . . . . Protection 2 | . . 1 . . . 1 . Artifact . | . . . . . . . . Weapon 4 | . . 1 . . . . 3 Energy Gun . | . . . . . . . . Energy Cannon . | . . . . . . . . Ballistic Gun . | . . . . . . . . Ballistic Cannon . | . . . . . . . . Launcher 2 | . . 1 . . . . 1 Special Weapon . | . . . . . . . . Impact Weapon . | . . . . . . . . Slashing Weapon 2 | . . . . . . . 2 Piercing Weapon . | . . . . . . . . Special Melee Weapon . | . . . . . . . . Unidentified Prototypes 2 | . . . 1 . 1 . . Parts Lost 8 | . . . . . . . 8 Power . | . . . . . . . . Propulsion 6 | . . . . . . . 6 Utility 1 | . . . . . . . 1 Weapon 1 | . . . . . . . 1 Highest Loss Streak 6 | . . . . . . . 6 To Critical Strikes . | . . . . . . . . Average Slot Usage (%) 38 | . . 31 49 55 55 57 36 Flight 13 | . . 7 22 22 22 24 12 Device 4 | . . . 5 11 11 11 3 Processor 9 | . . 12 11 11 11 11 9 Protection 1 | . . 3 . . . . 3 Launcher 6 | . . 8 11 11 11 11 2 Naked Turns 89 | . 56 26 . . . . 7 Heaviest Build 10 | . . 3 4 4 4 5 10 Greatest Support 12 | 3 3 4 8 8 8 12 12 Greatest Overweight (x) . | . . . . . . . . Average Overweight (x) . | . . . . . . . . Largest Inventory Capacity 5 | 5 5 5 5 5 5 5 5 Average Capacity 5 | 5 5 5 5 5 5 5 5 Most Carried 5 | . 1 4 4 3 5 5 5 Average Carried 3 | . . 2 3 3 3 4 4 Final Capacity 5 | 5 5 5 5 5 5 5 5 Final Carried 5 | . 1 4 3 3 5 4 5 Class Distribution -------------------- 89% | Mutant 10% | Sprinter Dominant Class ---------------- Mutant | -10/Materials Mutant | -10/Mines Mutant | -9/Materials Mutant | -9/Mines Mutant | -9/Exiles Mutant | -8/Mines Mutant | -8/Materials Resources | -11 -10 -10 -9 -9 -9 -8 -8 ----------- Run | Jun Mat Min Mat Min Exi Min Mat Matter Collected 369 | 200 . 60 . . . . 109 Remotely . | . . . . . . . . Salvage Created 31 | . . 7 . . . 12 12 Parts 14 | . . 4 . . . 4 6 Haulers Intercepted . | . . . . . . . . Recyclers Shooed . | . . . . . . . . Parts Field Recycled . | . . . . . . . . Retrieved Matter . | . . . . . . . . Parts Self-Destructed . | . . . . . . . . Prevented . | . . . . . . . . Kills | -11 -10 -10 -9 -9 -9 -8 -8 ------- Run | Jun Mat Min Mat Min Exi Min Mat Combat Hostiles Destroyed 8 | . . 3 . . . 3 2 AOE 8 | . . 3 . . . 3 2 Classes Destroyed 2 | . . 1 . . . . 1 Worker 1 | . . . . . . . 1 Swarmer 8 | . . 3 . . . 3 2 Best Kill Streak 3 | . . 3 . . . 3 3 Combat Bots Only 3 | . . 3 . . . 3 2 Max Kills in Single Turn 2 | . . 2 . . . 2 2 Gunslinging . | . . . . . . . . Exploded 2 | . . 2 . . . 2 2 Melee . | . . . . . . . . Uniques/NPCs Destroyed . | . . . . . . . . Combat | -11 -10 -10 -9 -9 -9 -8 -8 -------- Run | Jun Mat Min Mat Min Exi Min Mat Damage Taken 1038 | . 91 17 14 10 . 10 896 Core 684 | . 91 . . . . . 593 Absorbed by Shields . | . . . . . . . . Core Remaining (%) 87 | 100 . 63 . . . 100 . Volleys Fired 6 | . . 2 . . . 2 2 Largest 1 | . . 1 . . . 1 1 Hottest 30 | . . 30 . . . 30 30 Shots Fired 6 | . . 2 . . . 2 2 Gun . | . . . . . . . . Cannon . | . . . . . . . . Launcher 6 | . . 2 . . . 2 2 Special . | . . . . . . . . Kinetic . | . . . . . . . . Thermal . | . . . . . . . . Explosive 6 | . . 2 . . . 2 2 Electromagnetic . | . . . . . . . . Robot Hit Streak 2 | . . 2 . . . 1 1 Robot Miss Streak 1 | . . . . . . 1 1 Penetration Max . | . . . . . . . . Secondary Targets . | . . . . . . . . Shots Hit Robots 4 | . . 2 . . . 1 1 Core Hits 14 | . . 3 . . . 3 8 Critical Kills . | . . . . . . . . Critical Parts Destroyed . | . . . . . . . . Critical Strikes . | . . . . . . . . Melee Attacks 6 | . . . . . . . 6 Impact . | . . . . . . . . Slashing 6 | . . . . . . . 6 Piercing . | . . . . . . . . Sneak Attacks . | . . . . . . . . Combat Hostiles . | . . . . . . . . Follow-up Attacks . | . . . . . . . . Damage Inflicted 445 | . . 160 . . . 103 182 Guns . | . . . . . . . . Cannons . | . . . . . . . . Explosions 426 | . . 160 . . . 103 163 Melee . | . . . . . . . . Ramming 19 | . . . . . . . 19 Kinetic . | . . . . . . . . Thermal . | . . . . . . . . Explosive 426 | . . 160 . . . 103 163 Electromagnetic . | . . . . . . . . Impact . | . . . . . . . . Slashing . | . . . . . . . . Piercing . | . . . . . . . . Highest Corruption 12 | . 1 1 . . . . 12 Average Corruption 4 | . 1 1 . . . . 11 Corruption Purged . | . . . . . . . . Corruption Blocked . | . . . . . . . . Effects 7 | . . 1 . . . . 6 Message Errors 2 | . . . . . . . 2 Matter Fused 1 | . . . . . . . 1 Heat Flow Errors 1 | . . . . . . . 1 Energy Discharges 1 | . . 1 . . . . . Data Loss (major) 1 | . . . . . . . 1 Misdirections 1 | . . . . . . . 1 Overload Shots . | . . . . . . . . Overflow Damage 11 | . . . . . . . 11 Projectiles . | . . . . . . . . Explosions 11 | . . . . . . . 11 Melee . | . . . . . . . . Knockbacks . | . . . . . . . . Impact . | . . . . . . . . Kinetic . | . . . . . . . . Secondary . | . . . . . . . . Self-Inflicted Damage 7 | . . . . . . . 7 Shots . | . . . . . . . . Rammed 6 | . . . . . . . 6 Targets Rammed 6 | . . . . . . . 6 Kicked . | . . . . . . . . Crushed . | . . . . . . . . Highest Temperature 106 | . 2 5 . . . . 106 Average Temperature 46 | . 2 5 . . . . 57 Received Heat Transfer 354 | . 69 . 9 6 . . 270 Siege Activations . | . . . . . . . . Robots Corrupted . | . . . . . . . . Combat Hostiles . | . . . . . . . . Parts Fried . | . . . . . . . . Impact Corruptions . | . . . . . . . . Robots Melted . | . . . . . . . . Combat Hostiles . | . . . . . . . . Parts Melted . | . . . . . . . . Heat Transferred . | . . . . . . . . Parts Sabotaged . | . . . . . . . . Parts Stolen . | . . . . . . . . Parts Stripped . | . . . . . . . . Power Chain Reactions . | . . . . . . . . Missiles Intercepted . | . . . . . . . . Alert | -11 -10 -10 -9 -9 -9 -8 -8 ------- Run | Jun Mat Min Mat Min Exi Min Mat Peak Influence 194 | . 23 112 73 73 . 142 194 Initial 55 | . . 8 43 28 . . 55 Average 55 | . 14 51 55 43 . 34 89 Maximum Alert Level . | . . . . . . . . Low Security (%) 100 | 100 100 100 100 100 . 100 100 Level 1 . | . . . . . . . . Level 2 . | . . . . . . . . Level 3 . | . . . . . . . . Level 4 . | . . . . . . . . Level 5 . | . . . . . . . . High Security . | . . . . . . . . Max Security . | . . . . . . . . Squads Dispatched 6 | . 1 . 1 . . . 4 Investigation 4 | . 1 . 1 . . . 2 Extermination . | . . . . . . . . Reinforcement 2 | . . . . . . . 2 Assault . | . . . . . . . . Garrison . | . . . . . . . . Intercept . | . . . . . . . . Searches Triggered . | . . . . . . . . Construction Impeded . | . . . . . . . . Haulers Reinforced . | . . . . . . . . Active Scanning Responses . | . . . . . . . . Cargo Convoy Interrupts . | . . . . . . . . Stealth | -11 -10 -10 -9 -9 -9 -8 -8 --------- Run | Jun Mat Min Mat Min Exi Min Mat Distress Signals 1 | . . . . . . . 1 Communications Jammed . | . . . . . . . . Distress Signals . | . . . . . . . . Times Spotted 44 | . 3 5 2 3 . 7 24 Peak Tracking Total 13 | . 3 3 2 3 . 5 13 Tactical Retreats 8 | . . 1 . 2 . 2 3 Traps | -11 -10 -10 -9 -9 -9 -8 -8 ------- Run | Jun Mat Min Mat Min Exi Min Mat Traps Triggered 2 | . 1 . . . . . 1 Indirectly . | . . . . . . . . Trap Hack Attempts . | . . . . . . . . Triggered . | . . . . . . . . Disarmed . | . . . . . . . . Reprogrammed . | . . . . . . . . Reused . | . . . . . . . . Traps Extracted . | . . . . . . . . Installed . | . . . . . . . . Triggered . | . . . . . . . . Machines | -11 -10 -10 -9 -9 -9 -8 -8 ---------- Run | Jun Mat Min Mat Min Exi Min Mat Machines Disabled . | . . . . . . . . Max in Single Turn . | . . . . . . . . Machines Repaired . | . . . . . . . . Machines Sabotaged . | . . . . . . . . Overloaded Fab Kills . | . . . . . . . . Hacking | -11 -10 -10 -9 -9 -9 -8 -8 --------- Run | Jun Mat Min Mat Min Exi Min Mat Machines Accessed 5 | . 1 . 1 . 1 . 2 Terminals 4 | . 1 . 1 . . . 2 Fabricators . | . . . . . . . . Repair Stations . | . . . . . . . . Recycling Units . | . . . . . . . . Scanalyzers . | . . . . . . . . Garrison Access . | . . . . . . . . Total Hacks 10 | . 4 . 2 . 1 . 3 Successful 4 | . 1 . 1 . 1 . 1 Failed 6 | . 3 . 1 . . . 2 Catastrophic 4 | . 1 . 1 . . . 2 Database Lockouts . | . . . . . . . . Manual 8 | . 4 . . . 1 . 3 Terminals 9 | . 4 . 2 . . . 3 Fabricators . | . . . . . . . . Repair Stations . | . . . . . . . . Recycling Units . | . . . . . . . . Scanalyzers . | . . . . . . . . Garrison Access . | . . . . . . . . Terminal Hacks 4 | . 1 . 1 . 1 . 1 Branch Access Points 2 | . 1 . 1 . . . . Zone Layout 1 | . . . . . . . 1 EX-Prototype ID Bank 1 | . . . . . 1 . . Fabricator Hacks . | . . . . . . . . Repair Station Hacks . | . . . . . . . . Recycling Unit Hacks . | . . . . . . . . Scanalyzer . | . . . . . . . . Garrison Access Hacks . | . . . . . . . . Unauthorized Hacks . | . . . . . . . . Terminals . | . . . . . . . . Fabricators . | . . . . . . . . Repair Stations . | . . . . . . . . Recycling Units . | . . . . . . . . Scanalyzers . | . . . . . . . . Garrison Access . | . . . . . . . . Data Cores Recovered . | . . . . . . . . Used . | . . . . . . . . Hacking Detections 4 | . 1 . 1 . . . 2 Full Trace Events 3 | . 1 . 1 . . . 1 Feedback Events 1 | . 1 . . . . . . Corruption 1 | . 1 . . . . . . Feedback Blocked . | . . . . . . . . Robot Schematics Acquired . | . . . . . . . . Robots Built . | . . . . . . . . Authchips . | . . . . . . . . Time . | . . . . . . . . Total Robot Build Rating . | . . . . . . . . Part Schematics Acquired . | . . . . . . . . Parts Built . | . . . . . . . . Authchips . | . . . . . . . . Time . | . . . . . . . . Total Part Build Rating . | . . . . . . . . Parts Repaired . | . . . . . . . . Time . | . . . . . . . . Parts Recycled . | . . . . . . . . Recycled Matter . | . . . . . . . . Retrieved Matter . | . . . . . . . . Retrieved Components . | . . . . . . . . Parts Scanalyzed . | . . . . . . . . Part Schematics Acquired . | . . . . . . . . Parts Damaged . | . . . . . . . . Bothacking | -11 -10 -10 -9 -9 -9 -8 -8 ------------ Run | Jun Mat Min Mat Min Exi Min Mat Used RIF Installer . | . . . . . . . . Robots Hacked . | . . . . . . . . Non-combat . | . . . . . . . . Combat . | . . . . . . . . Robot Hacks Applied . | . . . . . . . . Relay Couplers Released . | . . . . . . . . Fabnet Peak Effective % . | . . . . . . . . Robots Rewired . | . . . . . . . . Allies Hacked . | . . . . . . . . Hacks Repelled . | . . . . . . . . Allies | -11 -10 -10 -9 -9 -9 -8 -8 -------- Run | Jun Mat Min Mat Min Exi Min Mat Total Allies . | . . . . . . . . Largest Group . | . . . . . . . . Highest-Rated Group . | . . . . . . . . Highest-Rated Ally . | . . . . . . . . Total Orders . | . . . . . . . . Ally Attacks . | . . . . . . . . Total Damage . | . . . . . . . . Kills . | . . . . . . . . Allies Corrupted . | . . . . . . . . Allies Melted . | . . . . . . . . Intel | -11 -10 -10 -9 -9 -9 -8 -8 ------- Run | Jun Mat Min Mat Min Exi Min Mat Robot Analysis Total . | . . . . . . . . Derelict Logs Recovered 4 | . . 3 . 1 . . . Drone Launches . | . . . . . . . . Drone Recoveries . | . . . . . . . . Exploration | -11 -10 -10 -9 -9 -9 -8 -8 ------------- Run | Jun Mat Min Mat Min Exi Min Mat Turns Passed 637 | 14 56 183 41 54 74 51 164 Spaces Moved 1442 | 28 110 389 110 156 208 126 315 Core 383 | 28 110 147 . . . . 98 Treads . | . . . . . . . . Legs . | . . . . . . . . Wheels . | . . . . . . . . Hover . | . . . . . . . . Flight 1059 | . . 242 110 156 208 126 217 Fastest Speed 32 | 50 50 40 34 34 34 32 32 Average Speed 39 | 50 50 43 34 34 34 33 39 Slowest Speed 50 | 50 50 50 40 34 34 34 50 Overloaded Moves . | . . . . . . . . Propulsion Burnouts . | . . . . . . . . Robots Hopped 8 | . . 1 1 . 1 1 4 Cave-ins Triggered 1 | . . . . . . . 1 Exploration Rate (%) 39 | 3 32 81 19 47 60 45 31 Regions Visited 7 Branch Regions 4 Pre-discovered Areas 3 | . . 2 . 1 . . . Known Exits Taken 6 | . 1 1 1 1 1 1 . Unknown Exits Taken 1 | 1 . . . . . . . Scrap Searched 2 | . . 1 . 1 . . . Spaces Dug 5 | . . . . . . . 5 Terrain Destroyed 40 | . . 4 . . . 13 23 Melee 5 | . . . . . . . 5 Projectile . | . . . . . . . . AOE 35 | . . 4 . . . 13 18 Terrain Rammed . | . . . . . . . . Walls Destroyed . | . . . . . . . . Machines Disabled . | . . . . . . . . Actions | -11 -10 -10 -9 -9 -9 -8 -8 --------- Run | Jun Mat Min Mat Min Exi Min Mat Total 1478 | 27 110 397 110 156 209 130 339 Wait 1 | . . . . 1 . . . Move 1419 | 27 109 386 107 155 205 123 307 Hop 8 | . . 1 1 . 1 1 4 Pick Up 8 | . 1 3 . . 1 1 2 Fast Attach 9 | . . 3 1 . 1 1 3 Attach 5 | . . 1 1 . . 1 2 Detach 5 | . . 1 . . 1 . 3 Swap 2 | . . . . . . . 2 Drop 3 | . . . . . . 1 2 Fire 6 | . . 2 . . . 2 2 Melee 6 | . . . . . . . 6 Ram 6 | . . . . . . . 6 Kick . | . . . . . . . . Crush . | . . . . . . . . Escape Stasis . | . . . . . . . . Rewire . | . . . . . . . . Trap . | . . . . . . . . Miscellaneous . | . . . . . . . . Route ------- -11/Junkyard -10/Materials -10/Mines -9/Materials (discovered 2 exits: *Min x2) -9/Mines -9/Exiles -8/Mines -8/Materials History --------- Turn | Location | Event 3 | -11/Junkyard | Discovered new exit (range 15) 15 | -11/Junkyard | Entered Materials 56 | -10/Materials | Identified exit to Mines 71 | -10/Materials | Entered Mines 78 | -10/Mines | Learned location of Zion (-6) 163 | -10/Mines | Learned location of Storage (-8) 172 | -10/Mines | Learned Materials security intel 191 | -10/Mines | Found a damaged Exp. Sensor Array with a note attached 192 | -10/Mines | Found Prototype Device 252 | -10/Mines | Discovered new exit (range 8) 254 | -10/Mines | Identified exit to Materials 254 | -10/Mines | Entered Materials 254 | -9/Materials | Evolved 2 slots: Propulsion x1, Utility x1 257 | -9/Materials | Identified exit to Mines 279 | -9/Materials | Identified Exp. Sensor Array 295 | -9/Materials | Entered Mines 300 | -9/Mines | Build established: Mutant 328 | -9/Mines | Found a hidden stash of uninstalled traps 348 | -9/Mines | Deemed a non-threat by the Exiles lab entrance 348 | -9/Mines | Discovered new exit (range 5) 349 | -9/Mines | Identified exit to Exiles 349 | -9/Mines | Entered Exiles 349 | -9/Exiles | Found Exiles lab destroyed 384 | -9/Exiles | Opened EX-Vault 386 | -9/Exiles | Found Prototype Device 386 | -9/Exiles | Identified Skeleton Box 419 | -9/Exiles | Discovered new exit (range 14) 423 | -9/Exiles | Identified exit to Mines 423 | -9/Exiles | Entered Mines 459 | -8/Mines | Discovered new exit (range 15) 474 | -8/Mines | Identified exit to Materials 474 | -8/Mines | Entered Materials 474 | -8/Materials | Evolved 2 slots: Propulsion x1, Utility x1 538 | -8/Materials | Crushed by falling debris 545 | -8/Materials | System corruption reached 10% 593 | -8/Materials | Core integrity fell below 50% 597 | -8/Materials | Lost 6 parts (4n1u1w) 613 | -8/Materials | Core integrity fell below 20% 638 | -8/Materials | Destroyed by H-61 Shepherd with Heavy Assault Cannon Last Messages --------------- 00581_ Acquired 109 matter. 00583_ Dropped Lgt. Nuclear Core. 00583_ Acquired Lgt. Nuclear Core. 00593_ System corrupted: Heat flow error (+125). 00593_ Acquired Flight Unit. 00594_ Critical hit (Burn: +37). 00595_ K-01 Serf collects debris. 00597_ R-06 Scavenger suffers critical hit (Burn). 00598_ Flight Unit destroyed. 00598_ S-10 Pest destroyed. 00598_ K-01 Serf collects debris. 00600_ Flight Unit destroyed. 00609_ 4& X/Q8VQUL,&C4>C9Y,2FLKJSRB 00610_ Slammed into G-47 Trooper. 00617_ Slammed into A-02 Transporter. 00624_ ALERT: Suspicious intruders detected, dispatching Cutter reinforcements to area. 00631_ Slammed into C-17 Slicer. 00631_ Signal Interpreter severed. 00636_ System corrupted: Substantial component data lost. Map ----- +----------------------------------------------------+ | ?????????????????# ## # """ ###### | | ?????????????????# "" ## # # | | ?????????????????# T" ####+#+## / =! | | ?????????????????# ""%/% # =! | | ?????????????????# #### ! #?? | | ?????????????##### """ ####+########]]! #???? | | ############## # """ # #??#]!! #????? | | #!! ## # """ # """ #??#]! ###### | | #! ## # # """ !#??# | | "S +! ## / # """ #??# | | """ # ## %# # #??# !!! ###### | | "" #] ## # # " " #??# !! #????? | | !# ## ####### "R" #??# !! #????? | | ##+######+### #????# """ #??# #????? | | #????# #??# #????? | | #????#### ######## #????? | | #??????# ! # ????? | | ############# #??????# " # ????? | | ????????????###+###??????# """ "G" # ????? | | ?????????????"" ???????# """ " " ## #### ????? | | #?????????? "R" ?##??# """ ## ???? ????? | | #?????????# " " ##!!?# = ## ????? ????? | | #?????????# """ ##!!?# #??????? ????? | | #?????????# ! """ ##!! # #??????? ????? | | #?????????# """ ##!! #+######+##?????????????? | | ??????????#[ ##]] @% #????????? | | ??????????# ?##]] H #????????? | | ??????????#######????############### #????????? | | ?????????????????????????????????????????????????? | | ?????????????????????????????????????????????????? | | ?????????????????????????????????????????????????? | | ?????????????????????????????????????????????????? | | ?????????????????????????????????????????????????? | | ?????????????????????????????????????????????????? | | ?????????????????????????????????????????????????? | | ?????????????????????????????????????????????????? | | ?????????????????????????????????????????????????? | | ?????????????????????????????????????????????????? | | ?????????????????????????????????????????????????? | | ?????????????????????????????????????????????????? | | ?????????????????????????????????????????????????? | | ?????????????????????????????????????????????????? | | ?????????????????????????????????????????????????? | | ?????????????????????????????????????????????????? | | ?????????????????????????????????????????????????? | | ?????????????????????????????????????????????????? | | ?????????????????????????????????????????????????? | | ?????????????????????????????????????????????????? | | ?????????????????????????????????????????????????? | | ?????????????????????????????????????????????????? | +----------------------------------------------------+ Best States ------------- Heat Dissipation 31 Energy Generation 14 Energy Capacity 160 Matter Stores 300 Matter Capacity 300 Sight Range 16 Robot Scan Range 20 Terrain Scan Density 10 Utility Shielding 33 Evasion (%) 63 Item Schematics ----------------- None Robot Schematics ------------------ None Fabricated ------------ Nothing Alien Tech Used ----------------- None Achievements -------------- None Challenges ------------ None Game ------ Seed ControlGhostProcessor Manual? 0 Play Time 00:10:19 Cumulative 276.5 hours Start 2023.04.21 @ 22:08:41 End 2023.04.21 @ 22:18:48 Sessions 1 Manual Loads 0 Difficulty Rogue Special Mode None Game No. 118 Rogue 102 Adventurer 8 Explorer 8 Win Type - Total 20 Types 12/1/4/1/1/1/0/0/0 Lore% 87 Gallery% 84 Achievement% 75 Wizard Run 0 Options --------- ASCII 1 Keyboard 1 Movement Vi Keybinds 0 Fullscreen 1 Font 18/CogWide Map View 76x50 Tactical HUD 1 Map Filters NONE Filters NONE Steam 0 RUN: 03d6001c-5c53-4221-89f8-8f46d3e8f8b8